[Event "FIDE World Senior-50 CC 2023"]
[Site "Terrasini"]
[Date "2023.10.26"]
[Round "2.6"]
[White "Minasian, Artashes"]
[Black "Koganov, Mikhail"]
[Result "1-0"]
[ECO "B07"]
[WhiteElo "2462"]
[BlackElo "2170"]
[Annotator "RC"]
[PlyCount "135"]
[EventDate "2023.10.22"]
[EventType "swiss"]
[EventCountry "ITA"]
[SourceTitle "playchess.com"]
[Source "ChessBase"]
[SourceQuality "1"]
[TimeControl "40/5400+30:1800+30"]

1. e4 {[%emt 0:00:08]} d6 {[%emt 0:00:16]} 2. d4 {[%emt 0:00:15]} Nf6 {[%emt 0:00:06]} 3. Nc3 {[%emt 0:00:18]} e5 {[%emt 0:00:06]} 4. Nge2 {[%emt 0:00:30]} Nc6 {[%emt 0:01:53]} 5. h3 {[%emt 0:01:48]} g6 {[%emt 0:04:33]} 6. Be3 {[%emt 0:02:44]} Bg7 {[%emt 0:00:27]} 7. d5 {[%emt 0:07:09]} Ne7 {[%emt 0:03:36]} 8. g4 {[%emt 0:02:34]} h5 {[%emt 0:04:09]} 9. g5 {[%emt 0:02:04]} Nd7 {[%emt 0:00:15]} 10. h4 {[%emt 0:05:08]} Nb6 {[%emt 0:01:57]} 11. Ng3 {[%emt 0:00:11]} c6 {[%emt 0:03:46]} 12. a4 {[%emt 0:03:46]} cxd5 {[%emt 0:01:53]} 13. exd5 {[%emt 0:00:49]} Nf5 {[%emt 0:01:12]} 14. Bb5+ {[%emt 0:00:52]} Ke7 {[%emt 0:00:20]} 15. Nxf5+ {[%emt 0:07:34]} Bxf5 {[%emt 0:00:13]} 16. a5 {[%emt 0:00:07]} Nc8 {[%emt 0:05:45]} 17. f3 {[%emt 0:06:57]} a6 {[%emt 0:00:49]} 18. Be2 {[%emt 0:01:08]} Re8 {[%emt 0:01:48]} 19. Ne4 {[%emt 0:00:10]} Kf8 {[%emt 0:00:34]} 20. Qd2 {[%emt 0:02:49]} Re7 {[%emt 0:02:09]} 21. Ra3 {[%emt 0:04:11]} Rc7 {[%emt 0:02:45]} 22. O-O {[%emt 0:04:47]} Kg8 {[%emt 0:02:37]} 23. c4 {[%emt 0:02:01]} Bxe4 {[%emt 0:05:02]} 24. fxe4 {[%emt 0:00:07]} Kh7 {[%emt 0:11:26]} 25. Kh2 {[%emt 0:05:10]} Qe8 {[%emt 0:02:32]} 26. b4 {[%emt 0:01:21]} Bf8 {[%emt 0:01:17]} 27. Bg1 {[%emt 0:02:37]} Ne7 {[%emt 0:02:57]} 28. Raf3 {[%emt 0:00:44]} Ng8 {[%emt 0:00:07]} 29. Bb6 {[%emt 0:01:08]} Rd7 {[%emt 0:02:04]} 30. Bd1 {[%emt 0:01:26]} Re7 {[%emt 0:06:59]} 31. Qf2 {[%emt 0:00:13]} f6 {[%emt 0:01:48]} 32. gxf6 {[%emt 0:04:36]} Rf7 {[%emt 0:01:05]} 33. Be3 {[%emt 0:00:29]} Bh6 {[%emt 0:00:34]} 34. Bg5 {[%emt 0:00:51]} Qc8 {[%emt 0:00:27]} 35. Be2 {[%emt 0:01:27]} Qd7 {[%emt 0:01:53]} 36. Qb6 {[%emt 0:11:52]} Raf8 {[%emt 0:03:51]} 37. R3f2 {[%emt 0:00:21]} Rc8 {[%emt 0:03:41]} 38. Qe3 {[%emt 0:08:29]} Rcf8 {[%emt 0:03:18]} 39. Qh3 {[%emt 0:02:21]} Qd8 {[%emt 0:05:28]} 40. Qe6 {[%emt 0:01:01]} Bg7 {[%emt 0:00:23]} 41. Bxh5 {[%emt 0:37:06]} Bxf6 {[%emt 0:31:58]} 42. Be2 {[%emt 0:00:00]} Kg7 {[%emt 0:00:00]} 43. Qg4 {[%emt 0:00:00]} Qe7 {[%emt 0:00:00]} 44. Rg2 {[%emt 0:00:00]} Bxg5 {[%emt 0:00:00]} 45. Rxf7+ {[%emt 0:00:00]} Rxf7 {[%emt 0:00:00]} 46. Qxg5 {[%emt 0:00:00]} Qf6 {[%emt 0:00:00]} 47. h5 {[%emt 0:00:00]} Qxg5 {[%emt 0:00:00]} 48. Rxg5 {[%emt 0:00:00]} Ne7 {[%emt 0:00:00]} 49. hxg6 {[%emt 0:00:00]} Rf2+ {[%emt 0:00:00]} 50. Rg2 {[%emt 0:00:00]} Rf4 {[%emt 0:00:00]} 51. c5 {[%emt 0:06:41]} dxc5 {[%emt 0:00:00]} 52. bxc5 {[%emt 0:00:00]} Rxe4 {[%emt 0:00:00]} 53. d6 {[%emt 0:00:00]} Rh4+ {[%emt 0:00:00]} 54. Kg3 {[%emt 0:00:00]} Nf5+ {[%emt 0:00:00]} 55. Kf2 {[%emt 0:00:00]} Rf4+ {[%emt 0:00:00]} 56. Ke1 {[%emt 0:00:00]} Rd4 {[%emt 0:00:00]} 57. Rg5 {[%emt 0:00:00]} Ne3 {[%emt 0:00:00]} 58. Rxe5 {[%emt 0:00:00]} Nc2+ {[%emt 0:00:00]} 59. Kf2 {[%emt 0:00:00]} Kxg6 {[%emt 0:00:00]} 60. Re7 {[%emt 0:00:00]} Kf6 {[%emt 0:05:34]} 61. Rxb7 {[%emt 0:00:00]} Rd5 {[%emt 0:00:18]} 62. d7 {[%emt 0:02:13]} Nd4 {[%emt 0:01:18]} 63. Bc4 {[%emt 0:01:39]} Rf5+ {[%emt 0:01:10]} 64. Ke3 {[%emt 0:00:05]} Nc2+ {[%emt 0:00:17]} 65. Kd2 {[%emt 0:00:53]} Rf2+ {[%emt 0:00:13]} 66. Kc3 {[%emt 0:00:23]} Ke7 {[%emt 0:00:24]} 67. c6 {[%emt 0:00:32]} Ne1 {[%emt 0:01:44]} 68. Rb8 {[%emt 0:02:45]} 1-0

[Event "FIDE World Senior-50 CC 2023"]
[Site "Terrasini"]
[Date "2023.10.26"]
[Round "2.7"]
[White "Chinchilla Miranda, Eugenio"]
[Black "Matamoros Franco, Carlos S."]
[Result "0-1"]
[ECO "C01"]
[WhiteElo "2179"]
[BlackElo "2455"]
[Annotator "RC"]
[PlyCount "56"]
[EventDate "2023.10.22"]
[EventType "swiss"]
[EventCountry "ITA"]
[SourceTitle "playchess.com"]
[Source "ChessBase"]
[SourceQuality "1"]
[TimeControl "40/5400+30:1800+30"]

1. d4 {[%emt 0:00:04]} e6 {[%emt 0:00:22]} 2. c4 {[%emt 0:00:14]} b6 {[%emt 0:00:18]} 3. e4 {[%emt 0:04:17]} Bb4+ {[%emt 0:02:00]} 4. Nd2 {[%emt 0:08:21]} Bb7 {[%emt 0:01:24]} 5. Qc2 {[%emt 0:01:38]} Nf6 {[%emt 0:33:34]} 6. Bd3 {[%emt 0:02:10]} e5 {[%emt 0:00:58]} 7. Ngf3 {[%emt 0:05:55]} exd4 {[%emt 0:00:13]} 8. Nxd4 {[%emt 0:01:27]} O-O {[%emt 0:04:44]} 9. O-O {[%emt 0:02:10]} Re8 {[%emt 0:00:30]} 10. f3 {[%emt 0:14:57]} Bf8 {[%emt 0:11:11]} 11. Kh1 {[%emt 0:05:48]} a5 {[%emt 0:00:27]} 12. b3 {[%emt 0:02:29]} Na6 {[%emt 0:01:30]} 13. Bb2 {[%emt 0:02:41]} Nb4 {[%emt 0:05:41]} 14. Qb1 {[%emt 0:01:13]} a4 {[%emt 0:01:07]} 15. Be2 {[%emt 0:05:33]} a3 {[%emt 0:02:12]} 16. Bc3 {[%emt 0:00:50]} d5 {[%emt 0:01:49]} 17. cxd5 {[%emt 0:05:05]} Nfxd5 {[%emt 0:00:51]} 18. Qc1 {[%emt 0:11:13]} Nxc3 {[%emt 0:14:38]} 19. Qxc3 {[%emt 0:00:03]} Qf6 {[%emt 0:00:55]} 20. Nc4 {[%emt 0:03:43]} Nc6 {[%emt 0:04:00]} 21. Nb5 {[%emt 0:02:07]} Qxc3 {[%emt 0:00:05]} 22. Nxc3 {[%emt 0:00:09]} Nd4 {[%emt 0:00:10]} 23. Rfd1 {[%emt 0:01:43]} Bb4 {[%emt 0:00:26]} 24. Nd5 {[%emt 0:03:32]} Bxd5 {[%emt 0:00:07]} 25. Rxd4 {[%emt 0:00:08]} Bc3 {[%emt 0:00:08]} 26. Rxd5 {[%emt 0:00:08]} Bxa1 {[%emt 0:00:04]} 27. Rd7 {[%emt 0:00:27]} b5 {[%emt 0:03:45]} 28. Ne3 {[%emt 0:00:32]} Red8 {[%emt 0:00:27]} 0-1

[Event "FIDE World Senior-50 CC 2023"]
[Site "Terrasini"]
[Date "2023.10.26"]
[Round "2.8"]
[White "Schnelzer, Reinhold"]
[Black "Mohr, Georg"]
[Result "1/2-1/2"]
[ECO "A73"]
[WhiteElo "2174"]
[BlackElo "2430"]
[Annotator "RC"]
[PlyCount "35"]
[EventDate "2023.10.22"]
[EventType "swiss"]
[EventCountry "ITA"]
[SourceTitle "playchess.com"]
[Source "ChessBase"]
[SourceQuality "1"]
[TimeControl "40/5400+30:1800+30"]

1. d4 {[%emt 0:00:30]} Nf6 {[%emt 0:01:23]} 2. c4 {[%emt 0:00:00]} c5 {[%emt 0:01:39]} 3. d5 {[%emt 0:00:30]} e6 {[%emt 0:00:24]} 4. Nc3 {[%emt 0:00:31]} exd5 {[%emt 0:00:05]} 5. cxd5 {[%emt 0:00:14]} d6 {[%emt 0:00:04]} 6. e4 {[%emt 0:00:31]} g6 {[%emt 0:00:06]} 7. Nf3 {[%emt 0:00:28]} Bg7 {[%emt 0:00:07]} 8. Be2 {[%emt 0:00:57]} O-O {[%emt 0:00:06]} 9. O-O {[%emt 0:00:21]} Bg4 {[%emt 0:04:14]} 10. Bf4 {[%emt 0:04:21]} Bxf3 {[%emt 0:07:41]} 11. Bxf3 {[%emt 0:00:16]} Ne8 {[%emt 0:00:12]} 12. Bg4 {[%emt 0:05:00]} h5 {[%emt 0:04:17]} 13. Be2 {[%emt 0:01:13]} Nd7 {[%emt 0:00:24]} 14. Qd2 {[%emt 0:02:16]} a6 {[%emt 0:04:35]} 15. a4 {[%emt 0:01:09]} Rc8 {[%emt 0:02:13]} 16. a5 {[%emt 0:09:35]} Qe7 {[%emt 0:15:52]} 17. Ra4 {[%emt 0:04:32]} Nc7 {[%emt 0:03:15]} 18. Bh6 {[%emt 0:05:10]} 1/2-1/2

[Event "FIDE World Senior-50 CC 2023"]
[Site "Terrasini"]
[Date "2023.10.26"]
[Round "2.9"]
[White "Atalik, Suat"]
[Black "Kalisky, Vladimir"]
[Result "1-0"]
[ECO "D06"]
[WhiteElo "2427"]
[BlackElo "2169"]
[Annotator "RC"]
[PlyCount "67"]
[EventDate "2023.10.22"]
[EventType "swiss"]
[EventCountry "ITA"]
[SourceTitle "playchess.com"]
[Source "ChessBase"]
[SourceQuality "1"]
[TimeControl "40/5400+30:1800+30"]

1. d4 {[%emt 0:00:08]} d5 {[%emt 0:00:08]} 2. c4 {[%emt 0:00:16]} c5 {[%emt 0:00:06]} 3. cxd5 {[%emt 0:01:03]} Qxd5 {[%emt 0:00:09]} 4. Nf3 {[%emt 0:00:31]} cxd4 {[%emt 0:00:08]} 5. Nc3 {[%emt 0:00:23]} Qa5 {[%emt 0:00:06]} 6. Nxd4 {[%emt 0:00:06]} Nf6 {[%emt 0:00:09]} 7. a3 {[%emt 0:00:56]} e5 {[%emt 0:05:46]} 8. Nb3 {[%emt 0:00:36]} Qc7 {[%emt 0:01:40]} 9. Bg5 {[%emt 0:00:49]} Be6 {[%emt 0:01:51]} 10. Bxf6 {[%emt 0:04:15]} gxf6 {[%emt 0:00:08]} 11. Nd5 {[%emt 0:00:42]} Bxd5 {[%emt 0:07:20]} 12. Qxd5 {[%emt 0:00:10]} Nc6 {[%emt 0:00:29]} 13. e3 {[%emt 0:04:23]} Rd8 {[%emt 0:05:38]} 14. Qe4 {[%emt 0:08:43]} Qd7 {[%emt 0:07:52]} 15. Bb5 {[%emt 0:14:53]} a6 {[%emt 0:23:48]} 16. Bxc6 {[%emt 0:00:29]} Qxc6 {[%emt 0:00:06]} 17. Qxc6+ {[%emt 0:00:08]} bxc6 {[%emt 0:00:07]} 18. Nd2 {[%emt 0:04:01]} Rg8 {[%emt 0:02:06]} 19. g3 {[%emt 0:02:16]} f5 {[%emt 0:06:26]} 20. Ke2 {[%emt 0:00:31]} Rg6 {[%emt 0:01:26]} 21. Rhc1 {[%emt 0:10:19]} c5 {[%emt 0:04:22]} 22. Nc4 {[%emt 0:06:44]} e4 {[%emt 0:00:14]} 23. Rd1 {[%emt 0:00:20]} Re6 {[%emt 0:06:02]} 24. Rxd8+ {[%emt 0:03:41]} Kxd8 {[%emt 0:00:05]} 25. Rd1+ {[%emt 0:00:20]} Kc7 {[%emt 0:02:17]} 26. Rd5 {[%emt 0:00:32]} Rf6 {[%emt 0:00:30]} 27. b3 {[%emt 0:08:13]} Be7 {[%emt 0:01:10]} 28. f3 {[%emt 0:03:40]} exf3+ {[%emt 0:07:50]} 29. Kxf3 {[%emt 0:00:06]} Bf8 {[%emt 0:00:12]} 30. h4 {[%emt 0:03:30]} Kc8 {[%emt 0:06:46]} 31. h5 {[%emt 0:03:32]} Kc7 {[%emt 0:00:55]} 32. a4 {[%emt 0:00:09]} Kc6 {[%emt 0:08:34]} 33. Rd8 {[%emt 0:00:29]} Be7 {[%emt 0:00:08]} 34. Ne5+ {[%emt 0:20:36]} 1-0

[Event "FIDE World Senior-50 CC 2023"]
[Site "Terrasini"]
[Date "2023.10.26"]
[Round "2.10"]
[White "Stets, Vasyl"]
[Black "Lima, Darcy"]
[Result "0-1"]
[ECO "A48"]
[WhiteElo "2169"]
[BlackElo "2416"]
[Annotator "RC"]
[PlyCount "129"]
[EventDate "2023.10.22"]
[EventType "swiss"]
[EventCountry "ITA"]
[SourceTitle "playchess.com"]
[Source "ChessBase"]
[SourceQuality "1"]
[TimeControl "40/5400+30:1800+30"]

1. d4 {[%emt 0:00:17]} Nf6 {[%emt 0:00:14]} 2. Bf4 {[%emt 0:00:25]} g6 {[%emt 0:00:28]} 3. e3 {[%emt 0:00:09]} Bg7 {[%emt 0:00:06]} 4. Nf3 {[%emt 0:00:17]} O-O {[%emt 0:01:12]} 5. Be2 {[%emt 0:00:17]} d6 {[%emt 0:00:17]} 6. h3 {[%emt 0:00:17]} b6 {[%emt 0:00:56]} 7. O-O {[%emt 0:00:17]} Bb7 {[%emt 0:00:23]} 8. Nbd2 {[%emt 0:00:53]} Nbd7 {[%emt 0:00:13]} 9. a4 {[%emt 0:00:47]} a5 {[%emt 0:00:51]} 10. c3 {[%emt 0:00:28]} Re8 {[%emt 0:00:17]} 11. Bh2 {[%emt 0:01:27]} e5 {[%emt 0:01:10]} 12. Nc4 {[%emt 0:04:13]} Ne4 {[%emt 0:02:33]} 13. Nfd2 {[%emt 0:07:49]} Nxd2 {[%emt 0:04:09]} 14. Nxd2 {[%emt 0:01:00]} Qe7 {[%emt 0:00:11]} 15. Bf3 {[%emt 0:00:52]} e4 {[%emt 0:05:29]} 16. Be2 {[%emt 0:00:25]} f5 {[%emt 0:01:34]} 17. Qb3+ {[%emt 0:24:40]} Kh8 {[%emt 0:01:44]} 18. Rae1 {[%emt 0:02:22]} Bh6 {[%emt 0:05:24]} 19. Kh1 {[%emt 0:01:31]} Rg8 {[%emt 0:01:54]} 20. Bc4 {[%emt 0:13:45]} Rg7 {[%emt 0:04:36]} 21. Bd5 {[%emt 0:03:33]} Bxd5 {[%emt 0:00:14]} 22. Qxd5 {[%emt 0:00:08]} Rf8 {[%emt 0:01:13]} 23. b4 {[%emt 0:01:57]} Nf6 {[%emt 0:00:58]} 24. Qb5 {[%emt 0:04:47]} axb4 {[%emt 0:02:21]} 25. cxb4 {[%emt 0:00:29]} Qd7 {[%emt 0:00:05]} 26. Qxd7 {[%emt 0:03:00]} Rxd7 {[%emt 0:00:02]} 27. a5 {[%emt 0:02:41]} Nd5 {[%emt 0:01:25]} 28. Ra1 {[%emt 0:18:32]} Nxb4 {[%emt 0:01:40]} 29. axb6 {[%emt 0:03:27]} cxb6 {[%emt 0:00:05]} 30. Rab1 {[%emt 0:03:25]} Nd3 {[%emt 0:01:37]} 31. Rxb6 {[%emt 0:00:08]} d5 {[%emt 0:00:12]} 32. Rb8 {[%emt 0:01:24]} Rxb8 {[%emt 0:07:48]} 33. Bxb8 {[%emt 0:00:02]} Rb7 {[%emt 0:00:36]} 34. Bg3 {[%emt 0:00:27]} Rb2 {[%emt 0:03:23]} 35. Nb1 {[%emt 0:00:12]} g5 {[%emt 0:00:05]} 36. Nc3 {[%emt 0:01:18]} f4 {[%emt 0:00:08]} 37. exf4 {[%emt 0:00:15]} gxf4 {[%emt 0:00:06]} 38. Bh4 {[%emt 0:00:27]} Bg7 {[%emt 0:05:12]} 39. Nxd5 {[%emt 0:00:42]} Bxd4 {[%emt 0:00:05]} 40. Nf6 {[%emt 0:00:45]} Bxf2 {[%emt 0:02:37]} 41. Bxf2 {[%emt 0:31:10]} Nxf2+ {[%emt 0:30:12]} 42. Rxf2 {[%emt 0:00:00]} Rxf2 {[%emt 0:00:05]} 43. Nxe4 {[%emt 0:00:00]} Re2 {[%emt 0:03:48]} 44. Nf6 {[%emt 0:00:55]} Re5 {[%emt 0:01:21]} 45. Ng4 {[%emt 0:00:00]} Re1+ {[%emt 0:00:00]} 46. Kh2 {[%emt 0:00:00]} Kg7 {[%emt 0:00:00]} 47. Nf2 {[%emt 0:00:00]} Re3 {[%emt 0:00:00]} 48. Ng4 {[%emt 0:00:00]} Re2 {[%emt 0:00:00]} 49. Kg1 {[%emt 0:00:00]} Kg6 {[%emt 0:00:00]} 50. Kf1 {[%emt 0:00:00]} Ra2 {[%emt 0:00:00]} 51. Ne5+ {[%emt 0:00:00]} Kf5 {[%emt 0:00:00]} 52. Nf3 {[%emt 0:00:00]} Ke4 {[%emt 0:00:00]} 53. Nh4 {[%emt 0:00:00]} Rb2 {[%emt 0:00:00]} 54. Kg1 {[%emt 0:00:00]} Ke3 {[%emt 0:00:00]} 55. Nf5+ {[%emt 0:00:00]} Ke2 {[%emt 0:00:00]} 56. Nd4+ {[%emt 0:00:00]} Kd3 {[%emt 0:00:00]} 57. Nf5 {[%emt 0:00:00]} Rb5 {[%emt 0:00:00]} 58. Nh4 {[%emt 0:00:00]} Ke2 {[%emt 0:00:00]} 59. Nf3 {[%emt 0:00:00]} Rd5 {[%emt 0:05:30]} 60. h4 {[%emt 0:01:24]} h6 {[%emt 0:01:56]} 61. Kh2 {[%emt 0:00:07]} Kf1 {[%emt 0:02:45]} 62. Kh3 {[%emt 0:01:41]} h5 {[%emt 0:00:09]} 63. Kh2 {[%emt 0:06:06]} Rd3 {[%emt 0:01:05]} 64. Ng5 {[%emt 0:00:38]} Rg3 {[%emt 0:01:00]} 65. Kh1 {[%emt 0:01:09]} 0-1

[Event "FIDE World Senior-50 CC 2023"]
[Site "Terrasini"]
[Date "2023.10.26"]
[Round "2.11"]
[White "Morin, Yves"]
[Black "Novik, Maxim"]
[Result "0-1"]
[ECO "B21"]
[WhiteElo "2169"]
[BlackElo "2375"]
[Annotator "RC"]
[PlyCount "80"]
[EventDate "2023.10.22"]
[EventType "swiss"]
[EventCountry "ITA"]
[SourceTitle "playchess.com"]
[Source "ChessBase"]
[SourceQuality "1"]
[TimeControl "40/5400+30:1800+30"]

1. e4 {[%emt 0:00:37]} c5 {[%emt 0:00:37]} 2. d3 {[%emt 0:00:48]} Nc6 {[%emt 0:00:56]} 3. f4 {[%emt 0:00:24]} d5 {[%emt 0:02:03]} 4. Nc3 {[%emt 0:02:44]} d4 {[%emt 0:01:27]} 5. Nce2 {[%emt 0:01:37]} e5 {[%emt 0:01:56]} 6. Nf3 {[%emt 0:03:04]} Bd6 {[%emt 0:02:49]} 7. g3 {[%emt 0:10:54]} Bg4 {[%emt 0:13:48]} 8. Bg2 {[%emt 0:01:42]} Nf6 {[%emt 0:00:11]} 9. h3 {[%emt 0:04:33]} Bxf3 {[%emt 0:04:11]} 10. Bxf3 {[%emt 0:00:15]} h5 {[%emt 0:01:39]} 11. Bg2 {[%emt 0:37:01]} Nd7 {[%emt 0:04:08]} 12. O-O {[%emt 0:06:05]} h4 {[%emt 0:07:33]} 13. g4 {[%emt 0:00:26]} exf4 {[%emt 0:02:22]} 14. Nxf4 {[%emt 0:01:07]} Nde5 {[%emt 0:00:35]} 15. Nd5 {[%emt 0:01:04]} Nb4 {[%emt 0:10:00]} 16. Rf2 {[%emt 0:06:01]} Nxd5 {[%emt 0:01:40]} 17. exd5 {[%emt 0:00:14]} Qe7 {[%emt 0:03:06]} 18. Re2 {[%emt 0:05:28]} O-O-O {[%emt 0:00:49]} 19. Bf4 {[%emt 0:00:46]} Qc7 {[%emt 0:00:29]} 20. Bxe5 {[%emt 0:00:30]} Bxe5 {[%emt 0:00:02]} 21. Qf1 {[%emt 0:00:24]} Bf4 {[%emt 0:04:17]} 22. Re4 {[%emt 0:02:11]} Be3+ {[%emt 0:01:42]} 23. Kh1 {[%emt 0:00:10]} Kb8 {[%emt 0:02:26]} 24. c4 {[%emt 0:01:21]} a6 {[%emt 0:02:24]} 25. Qf5 {[%emt 0:02:49]} Rh6 {[%emt 0:00:38]} 26. Qe5 {[%emt 0:00:45]} Rhd6 {[%emt 0:03:57]} 27. Rf1 {[%emt 0:03:53]} f6 {[%emt 0:00:07]} 28. Qf5 {[%emt 0:00:37]} Qa5 {[%emt 0:01:54]} 29. a3 {[%emt 0:01:18]} Rb6 {[%emt 0:01:52]} 30. d6 {[%emt 0:02:34]} Rxb2 {[%emt 0:01:56]} 31. Re7 {[%emt 0:01:09]} Rxd6 {[%emt 0:01:08]} 32. Qe4 {[%emt 0:01:31]} Rdb6 {[%emt 0:03:15]} 33. Qd5 {[%emt 0:01:32]} Qd2 {[%emt 0:00:13]} 34. a4 {[%emt 0:00:16]} a5 {[%emt 0:04:17]} 35. Rxg7 {[%emt 0:00:54]} Bf4 {[%emt 0:00:16]} 36. Qf3 {[%emt 0:00:10]} Rb1 {[%emt 0:01:33]} 37. Re7 {[%emt 0:00:33]} Rxf1+ {[%emt 0:01:14]} 38. Qxf1 {[%emt 0:00:16]} Be5 {[%emt 0:00:28]} 39. g5 {[%emt 0:01:29]} Qxg5 {[%emt 0:02:23]} 40. Qe1 {[%emt 0:00:41]} Qe3 {[%emt 0:05:30]} 0-1

[Event "FIDE World Senior-50 CC 2023"]
[Site "Terrasini"]
[Date "2023.10.26"]
[Round "2.12"]
[White "Mrva, Martin"]
[Black "Fayard, Alain"]
[Result "1-0"]
[ECO "B11"]
[WhiteElo "2366"]
[BlackElo "2158"]
[Annotator "RC"]
[PlyCount "55"]
[EventDate "2023.10.22"]
[EventType "swiss"]
[EventCountry "ITA"]
[SourceTitle "playchess.com"]
[Source "ChessBase"]
[SourceQuality "1"]
[TimeControl "40/5400+30:1800+30"]

1. e4 {[%emt 0:00:04]} c6 {[%emt 0:00:11]} 2. Nf3 {[%emt 0:06:53]} d5 {[%emt 0:00:34]} 3. Nc3 {[%emt 0:00:06]} dxe4 {[%emt 0:00:15]} 4. Nxe4 {[%emt 0:00:05]} Nf6 {[%emt 0:00:13]} 5. Qe2 {[%emt 0:03:11]} Nxe4 {[%emt 0:00:15]} 6. Qxe4 {[%emt 0:00:05]} Nd7 {[%emt 0:00:11]} 7. Bc4 {[%emt 0:01:24]} Nf6 {[%emt 0:00:15]} 8. Ne5 {[%emt 0:09:00]} e6 {[%emt 0:00:34]} 9. Qe2 {[%emt 0:03:59]} b5 {[%emt 0:00:21]} 10. Bb3 {[%emt 0:05:04]} Qc7 {[%emt 0:08:28]} 11. d4 {[%emt 0:02:13]} Bd6 {[%emt 0:06:12]} 12. Bg5 {[%emt 0:01:04]} Bxe5 {[%emt 0:04:35]} 13. dxe5 {[%emt 0:00:51]} Nd7 {[%emt 0:00:08]} 14. O-O-O {[%emt 0:01:45]} O-O {[%emt 0:03:32]} 15. Be7 {[%emt 0:07:25]} Re8 {[%emt 0:00:02]} 16. Bd6 {[%emt 0:00:09]} Qb6 {[%emt 0:00:21]} 17. Rd3 {[%emt 0:01:54]} c5 {[%emt 0:10:37]} 18. Rh3 {[%emt 0:04:19]} c4 {[%emt 0:07:15]} 19. Qe4 {[%emt 0:04:06]} h6 {[%emt 0:01:37]} 20. Qxa8 {[%emt 0:01:23]} Qxf2 {[%emt 0:05:30]} 21. Qf3 {[%emt 0:07:45]} Qxf3 {[%emt 0:02:00]} 22. Rxf3 {[%emt 0:00:33]} Bb7 {[%emt 0:01:28]} 23. Bxc4 {[%emt 0:01:34]} bxc4 {[%emt 0:00:38]} 24. Ra3 {[%emt 0:00:08]} a6 {[%emt 0:02:30]} 25. Rg1 {[%emt 0:02:04]} f6 {[%emt 0:04:25]} 26. exf6 {[%emt 0:02:12]} gxf6 {[%emt 0:00:41]} 27. Bf4 {[%emt 0:03:20]} h5 {[%emt 0:04:36]} 28. Rh3 {[%emt 0:01:30]} 1-0

[Event "FIDE World Senior-50 CC 2023"]
[Site "Terrasini"]
[Date "2023.10.26"]
[Round "2.13"]
[White "Paschall, William"]
[Black "Grant, Jonathan I M"]
[Result "0-1"]
[ECO "D37"]
[WhiteElo "2329"]
[BlackElo "2150"]
[Annotator "RC"]
[PlyCount "65"]
[EventDate "2023.10.22"]
[EventType "swiss"]
[EventCountry "ITA"]
[SourceTitle "playchess.com"]
[Source "ChessBase"]
[SourceQuality "1"]
[TimeControl "40/5400+30:1800+30"]

1. Nf3 {[%emt 0:01:05]} Nf6 {[%emt 0:00:45]} 2. c4 {[%emt 0:04:13]} e6 {[%emt 0:01:10]} 3. d4 {[%emt 0:04:40]} d5 {[%emt 0:00:06]} 4. Nc3 {[%emt 0:03:59]} a6 {[%emt 0:00:07]} 5. cxd5 {[%emt 0:01:22]} exd5 {[%emt 0:00:08]} 6. Bg5 {[%emt 0:02:30]} Be6 {[%emt 0:01:24]} 7. e3 {[%emt 0:03:31]} Nbd7 {[%emt 0:00:13]} 8. Bd3 {[%emt 0:05:50]} Bd6 {[%emt 0:00:30]} 9. Bh4 {[%emt 0:06:52]} c6 {[%emt 0:00:23]} 10. Bg3 {[%emt 0:01:05]} Qc7 {[%emt 0:00:11]} 11. Rc1 {[%emt 0:08:43]} O-O {[%emt 0:10:07]} 12. Bb1 {[%emt 0:19:56]} Rae8 {[%emt 0:16:24]} 13. Bxd6 {[%emt 0:07:41]} Qxd6 {[%emt 0:00:21]} 14. Ng5 {[%emt 0:03:23]} g6 {[%emt 0:08:44]} 15. Nxe6 {[%emt 0:07:08]} Rxe6 {[%emt 0:03:43]} 16. O-O {[%emt 0:01:54]} Nh5 {[%emt 0:04:09]} 17. Bf5 {[%emt 0:02:45]} Re7 {[%emt 0:01:17]} 18. Bxd7 {[%emt 0:00:44]} Qxd7 {[%emt 0:01:59]} 19. Na4 {[%emt 0:03:16]} f5 {[%emt 0:07:27]} 20. Nc5 {[%emt 0:00:54]} Qe8 {[%emt 0:04:12]} 21. Nd3 {[%emt 0:01:17]} f4 {[%emt 0:04:58]} 22. Ne5 {[%emt 0:01:20]} g5 {[%emt 0:04:29]} 23. Rc3 {[%emt 0:01:10]} Ng7 {[%emt 0:06:22]} 24. Re1 {[%emt 0:02:19]} Nf5 {[%emt 0:03:37]} 25. exf4 {[%emt 0:00:57]} gxf4 {[%emt 0:05:32]} 26. Qg4+ {[%emt 0:00:33]} Rg7 {[%emt 0:06:15]} 27. Qxf4 {[%emt 0:00:27]} Qh5 {[%emt 0:05:30]} 28. a3 {[%emt 0:00:57]} Nh4 {[%emt 0:00:34]} 29. Qd2 {[%emt 0:03:37]} Rxg2+ {[%emt 0:01:13]} 30. Kf1 {[%emt 0:00:25]} Rxh2 {[%emt 0:01:17]} 31. Rg3+ {[%emt 0:00:05]} Kh8 {[%emt 0:01:03]} 32. Ree3 {[%emt 0:01:18]} Nf5 {[%emt 0:01:04]} 33. Ref3 {[%emt 0:01:04]} 0-1

[Event "FIDE World Senior-50 CC 2023"]
[Site "Terrasini"]
[Date "2023.10.26"]
[Round "2.14"]
[White "Cabe, Arlan"]
[Black "Minnican, Alan"]
[Result "1/2-1/2"]
[ECO "A21"]
[WhiteElo "2303"]
[BlackElo "2071"]
[Annotator "RC"]
[PlyCount "21"]
[EventDate "2023.10.22"]
[EventType "swiss"]
[EventCountry "ITA"]
[SourceTitle "playchess.com"]
[Source "ChessBase"]
[SourceQuality "1"]
[TimeControl "40/5400+30:1800+30"]

1. c4 {[%emt 0:03:17]} e5 {[%emt 0:01:32]} 2. Nc3 {[%emt 0:00:09]} d6 {[%emt 0:00:07]} 3. g3 {[%emt 0:00:27]} f5 {[%emt 0:00:12]} 4. Bg2 {[%emt 0:00:07]} Nf6 {[%emt 0:00:23]} 5. d4 {[%emt 0:00:17]} Be7 {[%emt 0:01:33]} 6. b3 {[%emt 0:14:15]} c6 {[%emt 0:03:22]} 7. Bb2 {[%emt 0:11:24]} O-O {[%emt 0:06:29]} 8. Qd2 {[%emt 0:22:58]} Na6 {[%emt 0:20:48]} 9. Nh3 {[%emt 0:04:54]} Nc7 {[%emt 0:11:15]} 10. O-O {[%emt 0:07:54]} Qe8 {[%emt 0:06:24]} 11. f3 {[%emt 0:19:11]} 1/2-1/2